bitfinex/quotes_BTCUSD_20251031
["timestamp","ask_amount","ask_price","bid_price","bid_amount"]
[1761926799955,0.66618972,110400.0,110390.0,0.18139602]
[1761926800178,0.66618972,110400.0,110390.0,0.00022019]
[1761926800652,0.66618972,110400.0,110390.0,0.18139602]
[1761926801010,0.68039627,110400.0,110390.0,0.18139602]
[1761926801914,0.68039627,110400.0,110390.0,0.00022019]
[1761926802606,3.59142494,110400.0,110390.0,0.00022019]
[1761926803042,3.62705067,110400.0,110390.0,0.00022019]
[1761926803250,3.5380523,110400.0,110390.0,0.00022019]
[1761926803680,3.5360523,110400.0,110390.0,0.00022019]
[1761926803905,3.5410523,110400.0,110390.0,0.00022019]
[1761926804334,3.5400523,110400.0,110390.0,0.00022019]
[1761926804755,3.5420523,110400.0,110390.0,0.00022019]
[1761926806521,3.55886078,110400.0,110390.0,0.00022019]
[1761926806738,3.5420523,110400.0,110390.0,0.00022019]
[1761926807168,3.5251323,110400.0,110390.0,0.00022019]
[1761926807396,3.54194445,110400.0,110390.0,0.00022019]
[1761926810874,1.061242,110400.0,110390.0,0.00022019]
[1761926811071,1.060022,110400.0,110390.0,0.00022019]
[1761926811312,1.061242,110400.0,110390.0,0.00022019]
[1761926811524,1.04703545,110400.0,110390.0,0.00022019]
[1761926811968,1.04581545,110400.0,110390.0,0.00022019]
[1761926812187,1.04581545,110400.0,110390.0,0.22210602]
[1761926812188,0.03422818,110400.0,110390.0,0.22210602]
[1761926812391,0.67018972,110400.0,110390.0,0.19713602]
[1761926812606,0.4890303,110400.0,110390.0,0.19713602]
[1761926813030,0.66518972,110400.0,110390.0,0.19713602]
[1761926813358,0.18837942,110400.0,110390.0,0.19713602]
[1761926813745,0.18437942,110400.0,110390.0,0.19713602]
[1761926813950,0.00122,110400.0,110390.0,0.19713602]
[1761926814147,0.00322,110400.0,110390.0,0.19713602]
[1761926814363,0.18637942,110400.0,110390.0,0.19713602]
[1761926814564,0.18437942,110400.0,110390.0,0.19713602]
[1761926814774,0.18537942,110400.0,110390.0,0.19713602]
[1761926815862,0.00422,110400.0,110390.0,0.19713602]
[1761926816487,0.18537942,110400.0,110390.0,0.19713602]
[1761926816700,0.18537942,110400.0,110390.0,0.01596019]
[1761926816956,0.93084221,110400.0,110390.0,0.00022019]
[1761926817195,0.92962221,110400.0,110390.0,0.18139602]
[1761926818021,0.92962221,110400.0,110390.0,0.00022019]
[1761926818524,0.92962221,110400.0,110390.0,0.18139602]
[1761926819280,0.92962221,110400.0,110390.0,0.00022019]
[1761926819480,0.93084221,110400.0,110390.0,0.00022019]
[1761926820342,0.93084221,110400.0,110390.0,0.18139602]
[1761926820578,0.93084221,110400.0,110390.0,0.00022019]
[1761926820778,0.92962221,110400.0,110390.0,0.18139602]
[1761926820978,0.92962221,110400.0,110390.0,0.00022019]
[1761926821605,0.93084221,110400.0,110390.0,0.00022019]
[1761926822210,0.00422,110400.0,110390.0,0.19713602]
[1761926822344,0.003,110400.0,110390.0,0.22210602]
[1761926823383,0.001,110400.0,110390.0,0.2582883]
[1761926823587,0.003,110400.0,110390.0,0.2582883]
[1761926823786,0.002,110400.0,110390.0,0.2582883]
[1761926824194,0.001,110400.0,110390.0,0.2582883]
[1761926824608,0.92762221,110400.0,110390.0,0.00022019]
[1761926824834,0.92884221,110400.0,110390.0,0.00022019]
[1761926825042,0.92662221,110400.0,110390.0,0.18139602]
[1761926825242,0.92662221,110400.0,110390.0,0.00022019]
[1761926825649,0.92662221,110400.0,110390.0,0.18239602]
[1761926826047,0.92662221,110400.0,110390.0,0.18139602]
[1761926826457,0.92984221,110400.0,110390.0,0.00022019]
[1761926827452,0.93084221,110400.0,110390.0,0.00022019]
[1761926827660,0.93084221,110400.0,110390.0,0.18139602]
[1761926828038,0.93099424,110400.0,110390.0,0.00022019]
[1761926828489,0.92977424,110400.0,110390.0,0.18139602]
[1761926828716,0.74861482,110400.0,110390.0,0.19713602]
[1761926828934,0.003,110400.0,110390.0,0.22210602]
[1761926830405,0.001,110400.0,110390.0,0.22210602]
[1761926830613,0.92553783,110410.0,110400.0,0.18114787]
[1761926830825,0.92553783,110410.0,110400.0,0.18115942]
[1761926831075,0.92675783,110410.0,110400.0,0.19689942]
[1761926831687,0.74439482,110410.0,110400.0,0.19689942]
[1761926831890,0.93560762,110430.0,110410.0,0.18113516]
[1761926832120,0.93560762,110430.0,110410.0,0.23340516]
[1761926832121,0.94402945,110430.0,110410.0,0.23340516]
[1761926832310,0.94402945,110430.0,110420.0,0.1811266]
[1761926832516,1.28402945,110430.0,110420.0,0.1811266]
[1761926832730,0.35524534,110430.0,110420.0,0.1974966]
[1761926833280,0.02224534,110430.0,110420.0,0.2220666]
[1761926833471,0.00804118,110430.0,110420.0,0.2220666]
[1761926833728,0.00104118,110430.0,110420.0,0.2220666]
[1761926833960,0.00504118,110430.0,110420.0,0.2220666]
[1761926834214,0.00304118,110430.0,110420.0,0.2220666]
[1761926834417,0.18415138,110430.0,110420.0,0.2220666]
[1761926834647,0.18515138,110430.0,110420.0,0.2220666]
[1761926834875,0.00404118,110430.0,110420.0,0.2220666]
[1761926836643,0.18515138,110430.0,110420.0,0.2220666]
[1761926837066,0.00404118,110430.0,110420.0,0.2220666]
[1761926837293,0.18515138,110430.0,110420.0,0.2220666]
[1761926837507,0.00404118,110430.0,110420.0,0.2220666]
[1761926837932,0.18515138,110430.0,110420.0,0.2220666]
[1761926838364,0.9307662,110430.0,110420.0,0.01637]
[1761926838581,0.18114643,110410.0,110400.0,0.18115942]
[1761926838798,0.74439482,110410.0,110400.0,0.18115942]
[1761926839011,0.74439482,110410.0,110400.0,0.22209942]
[1761926839234,0.92553783,110410.0,110400.0,0.22209942]
[1761926839459,0.74439482,110410.0,110400.0,0.22209942]
[1761926839914,0.74439482,110410.0,110400.0,0.22509942]
[1761926840592,0.92553783,110410.0,110400.0,0.22609942]
[1761926841069,0.92553783,110410.0,110400.0,0.04494]
[1761926841288,0.92675783,110410.0,110400.0,0.004]
[1761926842430,0.92675783,110410.0,110400.0,0.001]
[1761926842666,0.92675783,110410.0,110400.0,0.002]
[1761926843138,0.92675783,110410.0,110400.0,0.001]
[1761926844985,0.92675783,110410.0,110400.0,0.19770942]
[1761926845869,0.92553783,110410.0,110400.0,0.19770942]
[1761926846091,0.92675783,110410.0,110400.0,0.19770942]
[1761926846570,0.18236301,110410.0,110400.0,0.19770942]
[1761926846807,0.18114301,110410.0,110400.0,0.22201942]
[1761926847035,0.96694967,110420.0,110400.0,0.22201942]
[1761926847258,1.28094621,110420.0,110410.0,0.01555]
[1761926847701,1.28094621,110420.0,110410.0,0.20911301]
[1761926847702,0.19533139,110420.0,110410.0,0.20911301]
[1761926847926,0.1811266,110420.0,110410.0,0.23342301]
[1761926848131,0.93560171,110430.0,110420.0,0.1811266]
[1761926848338,0.1811266,110420.0,110410.0,0.21787301]
[1761926848548,0.002,110420.0,110410.0,0.21787301]
[1761926848765,0.002,110420.0,110410.0,0.23342301]
[1761926848975,0.1811266,110420.0,110410.0,0.23342301]
[1761926849187,0.002,110420.0,110410.0,0.23342301]
[1761926849648,0.1831266,110420.0,110410.0,0.05228]
[1761926849877,0.1853466,110420.0,110410.0,0.20911301]
[1761926851002,0.92974142,110420.0,110410.0,0.20911301]
[1761926851122,0.94394545,110420.0,110410.0,0.20911301]
[1761926851347,0.94394545,110420.0,110410.0,0.02797]
[1761926851761,0.18114301,110410.0,110400.0,0.18115942]
[1761926851978,0.92675783,110410.0,110400.0,0.18115942]
[1761926852188,0.92675783,110410.0,110400.0,0.19670942]
[1761926852402,0.92675783,110410.0,110400.0,0.01555]
[1761926852616,0.18115942,110400.0,110390.0,0.20178415]
[1761926852835,0.18237942,110400.0,110390.0,0.21733415]
[1761926853046,0.92553783,110410.0,110390.0,0.21733415]
[1761926853258,0.92553783,110410.0,110390.0,0.24164415]
[1761926853473,0.93568065,110410.0,110390.0,0.24164415]
[1761926853675,0.18237942,110400.0,110390.0,0.20827602]
[1761926854354,0.18115942,110400.0,110390.0,0.23258602]
[1761926854595,0.18115942,110400.0,110390.0,0.23558602]
[1761926854805,0.18115942,110400.0,110390.0,0.23658602]
[1761926856325,0.18115942,110400.0,110390.0,0.03110019]
[1761926856326,0.18237942,110400.0,110390.0,0.03110019]
[1761926856787,0.18237942,110400.0,110390.0,0.21227602]
[1761926857200,0.18237942,110400.0,110390.0,0.03110019]
[1761926857412,0.92799424,110400.0,110390.0,0.00422019]
[1761926858031,0.92677424,110400.0,110390.0,0.00422019]
[1761926858292,0.18115942,110400.0,110390.0,0.22525602]
[1761926859415,0.92553783,110410.0,110390.0,0.22525602]
[1761926859630,0.18115942,110400.0,110390.0,0.22525602]
[1761926859854,0.18237942,110400.0,110390.0,0.20094602]
[1761926860071,0.18115942,110400.0,110390.0,0.20094602]
[1761926860553,0.18115942,110400.0,110390.0,0.19794602]
[1761926860740,0.18115942,110400.0,110390.0,0.19894602]
[1761926861150,0.18115942,110400.0,110390.0,0.01777019]
[1761926861352,0.18237942,110400.0,110390.0,0.01777019]
[1761926861603,0.94098041,110400.0,110390.0,0.19894602]
[1761926861829,0.94098041,110400.0,110390.0,0.19794602]
[1761926862226,0.94098041,110400.0,110390.0,0.20094602]
[1761926862433,0.19658559,110400.0,110390.0,0.20094602]
[1761926862646,0.01420617,110400.0,110390.0,0.22574602]
[1761926863100,0.18114301,110410.0,110400.0,0.18114867]
[1761926863312,0.18114301,110410.0,110400.0,0.20594867]
[1761926863524,0.18114301,110410.0,110400.0,0.22254867]
[1761926863950,0.19018293,110420.0,110400.0,0.22254867]
[1761926864156,0.18114301,110410.0,110400.0,0.22254867]
[1761926864390,0.93457775,110420.0,110400.0,0.22354867]
[1761926864587,0.18114301,110410.0,110400.0,0.22354867]
[1761926864800,0.93457775,110420.0,110400.0,0.22254867]
[1761926864997,0.18114301,110410.0,110400.0,0.22254867]
[1761926865207,0.18114301,110410.0,110400.0,0.0414]
[1761926865419,0.18236301,110410.0,110400.0,0.19775942]
[1761926865879,0.18115942,110400.0,110390.0,0.00022019]
[1761926866110,0.92677424,110400.0,110390.0,0.18139602]
[1761926866536,0.92677424,110400.0,110390.0,0.00022019]
[1761926867396,0.92677424,110400.0,110390.0,0.00122019]
[1761926867602,0.92677424,110400.0,110390.0,0.18239602]
[1761926867815,0.92677424,110400.0,110390.0,0.19899602]
[1761926868033,0.92677424,110400.0,110390.0,0.00422019]
[1761926868695,0.92799424,110400.0,110390.0,0.00422019]
[1761926869983,0.92677424,110400.0,110390.0,0.00422019]
[1761926870651,0.92799424,110400.0,110390.0,0.00422019]
[1761926872047,1.26799424,110400.0,110390.0,0.00422019]
[1761926873353,1.00468079,110400.0,110390.0,0.00422019]
[1761926874699,1.03190521,110400.0,110390.0,0.00422019]
[1761926874839,1.03068521,110400.0,110390.0,0.00422019]
[1761926875046,1.03068521,110400.0,110390.0,0.18539602]
[1761926875246,1.03068521,110400.0,110390.0,0.00422019]
[1761926877865,0.54960384,110400.0,110390.0,0.00422019]
[1761926878078,1.03068521,110400.0,110390.0,0.00422019]
[1761926879637,0.69068521,110400.0,110390.0,0.20199602]
[1761926879861,0.69068521,110400.0,110390.0,0.02082019]
[1761926880053,0.69068521,110400.0,110390.0,0.00422019]
[1761926880470,0.69190521,110400.0,110390.0,0.00422019]
[1761926881126,3.59582113,110400.0,110390.0,0.00422019]
[1761926881315,3.64054044,110400.0,110390.0,0.00422019]
[1761926881538,3.64254044,110400.0,110390.0,0.00422019]
[1761926881740,3.64054044,110400.0,110390.0,0.00422019]
[1761926882393,3.64054044,110400.0,110390.0,0.00322019]
[1761926882819,0.18124068,110360.0,110340.0,0.29198298]
[1761926883029,0.66354205,110360.0,110350.0,0.1812415]
[1761926883236,0.66354205,110360.0,110350.0,0.1978415]
[1761926883697,0.66354205,110360.0,110340.0,0.29211432]
[1761926884110,0.1812415,110350.0,110340.0,0.29211432]
[1761926884320,0.1824615,110350.0,110340.0,0.28391432]
[1761926884782,0.1812252,110360.0,110340.0,0.30871432]
[1761926885002,0.66354287,110350.0,110340.0,0.00013134]
[1761926885188,0.66476287,110350.0,110340.0,0.00013134]
[1761926885411,0.66476287,110350.0,110340.0,0.00313134]
[1761926887327,0.66476287,110350.0,110340.0,0.18138927]
[1761926887559,0.66554287,110350.0,110340.0,0.18138927]
[1761926888246,0.48430137,110350.0,110340.0,0.18138927]
[1761926888477,0.002,110350.0,110340.0,0.32688402]
[1761926888730,0.002,110350.0,110340.0,0.30875823]
[1761926888950,0.002,110350.0,110340.0,0.3098597]
[1761926891584,0.1832415,110350.0,110340.0,0.3098597]
[1761926891727,0.1844615,110350.0,110340.0,0.2850597]
[1761926891941,0.66554287,110350.0,110340.0,0.18249074]
[1761926892141,0.66554287,110350.0,110340.0,0.00123281]
[1761926892345,0.66554287,110350.0,110340.0,0.18249074]
[1761926892767,0.66554287,110350.0,110340.0,0.19908074]
[1761926893401,0.66676287,110350.0,110340.0,0.00123281]
[1761926894430,0.66554287,110350.0,110340.0,0.00123281]
[1761926895016,0.66676287,110350.0,110340.0,0.00123281]
[1761926895230,0.75273183,110350.0,110340.0,0.00123281]
[1761926895453,0.77997195,110350.0,110340.0,0.00123281]
[1761926896465,0.69400299,110350.0,110340.0,0.00123281]
[1761926899197,0.69278299,110350.0,110340.0,0.00123281]
[1761926899418,0.69400299,110350.0,110340.0,0.00123281]
[1761926900323,0.76570237,110350.0,110340.0,0.00123281]
[1761926900546,0.69400299,110350.0,110340.0,0.00123281]
[1761926903375,3.11997195,110350.0,110340.0,0.00123281]
[1761926904742,3.03400299,110350.0,110340.0,0.00123281]
[1761926905599,3.01893944,110350.0,110340.0,0.00123281]
[1761926905833,3.01893944,110350.0,110340.0,1e-08]
[1761926905834,3.65124085,110350.0,110340.0,1e-08]
[1761926906049,3.69260986,110350.0,110340.0,1e-08]
[1761926906492,3.70683127,110350.0,110340.0,1e-08]
[1761926906752,3.70682167,110350.0,110340.0,1e-08]
[1761926906971,2.75265893,110350.0,110340.0,1e-08]
[1761926907198,2.75565893,110350.0,110340.0,1e-08]
[1761926907423,0.18130722,110310.0,110300.0,0.0004]
[1761926907646,0.18130722,110310.0,110300.0,4.83e-05]
[1761926907647,2.72430434,110310.0,110300.0,4.83e-05]
[1761926907895,2.74367337,110310.0,110300.0,4.83e-05]
[1761926908127,3.26622979,110310.0,110300.0,4.83e-05]
[1761926908543,3.26422979,110310.0,110300.0,4.83e-05]
[1761926908989,3.26622979,110310.0,110300.0,4.83e-05]
[1761926909216,3.26422979,110310.0,110300.0,4.83e-05]
[1761926909441,3.26622979,110310.0,110300.0,4.83e-05]
[1761926909646,3.26522979,110310.0,110300.0,0.0030483]
[1761926910094,3.26722979,110310.0,110300.0,0.0030483]
[1761926910962,3.17741078,110310.0,110300.0,0.0030483]
[1761926911204,3.16900444,110310.0,110300.0,0.0030483]
[1761926911476,3.14963541,110310.0,110300.0,0.0030483]
[1761926913293,3.14963541,110310.0,110300.0,0.00393]
[1761926913480,3.15163541,110310.0,110300.0,0.00393]
[1761926913732,3.24145442,110310.0,110300.0,0.00393]
[1761926914844,3.23945442,110310.0,110300.0,0.00393]
[1761926917087,3.25875068,110310.0,110300.0,0.00393]
[1761926917296,3.23945442,110310.0,110300.0,0.00393]
[1761926919594,3.2252334,110310.0,110300.0,0.00393]
[1761926919817,3.03872619,110310.0,110300.0,0.00393]
[1761926920041,3.23945758,110310.0,110300.0,0.00393]
[1761926920259,3.14963857,110310.0,110300.0,0.00393]
[1761926922624,3.16385857,110310.0,110300.0,0.00393]
[1761926927222,3.16382976,110310.0,110300.0,0.00393]
[1761926927434,1.0778608,110310.0,110300.0,0.00393]
[1761926927797,3.16382976,110310.0,110300.0,0.00393]
[1761926928223,3.21780963,110310.0,110300.0,0.00393]
[1761926928449,3.17222159,110310.0,110300.0,0.00393]
[1761926928866,3.14377741,110310.0,110300.0,0.00393]
[1761926930056,3.16312047,110310.0,110300.0,0.00393]
[1761926931991,3.17735859,110310.0,110300.0,0.00393]
[1761926933109,3.70662223,110310.0,110300.0,0.00393]
[1761926933303,3.79644124,110310.0,110300.0,0.00393]
[1761926933514,3.58033252,110310.0,110300.0,0.00393]
[1761926935269,3.62851013,110310.0,110300.0,0.00393]
[1761926940195,3.52669113,110310.0,110300.0,0.00393]
[1761926940827,3.53869112,110310.0,110300.0,0.00393]
[1761926941028,3.53869112,110310.0,110300.0,1e-08]
[1761926941893,3.53869112,110310.0,110290.0,1e-08]
[1761926942120,2.6073255,110280.0,110270.0,1e-08]
[1761926942334,2.6073255,110280.0,110270.0,0.0004813]
[1761926942335,3.52751587,110280.0,110270.0,0.0004813]
[1761926942553,3.57607847,110280.0,110270.0,1e-08]
[1761926942775,3.61334321,110280.0,110270.0,1e-08]
[1761926942995,3.62756854,110280.0,110270.0,1e-08]
[1761926943416,3.57900594,110280.0,110270.0,1e-08]
[1761926943623,3.56478061,110280.0,110270.0,1e-08]
[1761926943867,3.56678061,110280.0,110270.0,1e-08]
[1761926944300,3.41877934,110280.0,110270.0,1e-08]
[1761926944554,3.42077934,110280.0,110270.0,1e-08]
[1761926944771,3.45496162,110280.0,110270.0,1e-08]
[1761926945196,3.46918685,110280.0,110270.0,1e-08]
[1761926946005,3.43500457,110280.0,110270.0,0.00100001]
[1761926946176,3.52487186,110280.0,110270.0,0.00100001]
[1761926946373,3.56105414,110280.0,110270.0,0.00100001]
[1761926946599,3.56305414,110280.0,110270.0,0.00100001]
[1761926947384,3.57728431,110280.0,110270.0,0.00100001]
[1761926947586,3.5872843,110280.0,110270.0,1e-08]
[1761926947995,2.85123027,110280.0,110270.0,1e-08]
[1761926948414,0.56755526,110270.0,110260.0,1e-08]
[1761926948629,2.7645581,110270.0,110260.0,1e-08]
[1761926949063,3.51061212,110270.0,110260.0,1e-08]
[1761926949276,2.7645581,110270.0,110260.0,1e-08]
[1761926949931,2.7665581,110270.0,110260.0,1e-08]
[1761926950144,2.7675581,110270.0,110260.0,1e-08]
[1761926950852,2.55957172,110260.0,110250.0,0.0636429]
[1761926951074,2.68498523,110260.0,110250.0,0.0636429]
[1761926951521,2.71225249,110260.0,110250.0,0.0636429]
[1761926951749,3.45830651,110260.0,110250.0,0.0636429]
[1761926952900,3.4691358,110260.0,110250.0,0.0636429]
[1761926953326,3.46710641,110260.0,110250.0,0.0636429]
[1761926953553,3.46910641,110260.0,110250.0,0.0646429]
[1761926953786,3.47110641,110260.0,110250.0,0.0646429]
[1761926954466,3.46910641,110260.0,110250.0,0.0646429]
[1761926955338,3.47110641,110260.0,110250.0,0.0646429]
[1761926955553,3.48533407,110260.0,110250.0,0.0646429]
[1761926955969,3.48333407,110260.0,110250.0,0.0646429]
[1761926956204,3.35792163,110260.0,110250.0,0.0646429]
[1761926956418,2.18140589,110250.0,110240.0,0.0004]
[1761926956634,3.04957625,110250.0,110240.0,0.0004]
[1761926957046,3.79763027,110250.0,110240.0,0.00084125]
[1761926957260,4.26163156,110250.0,110240.0,0.00084125]
[1761926957478,0.52142235,110240.0,110230.0,0.0004]
[1761926957689,4.03235267,110240.0,110230.0,0.0004]
[1761926957915,4.08585778,110240.0,110230.0,0.0004]
[1761926958123,4.17708794,110240.0,110230.0,0.0004]
[1761926958764,4.20436065,110240.0,110230.0,0.0004]
[1761926959603,4.21859145,110240.0,110230.0,0.0004]
[1761926960056,4.22059145,110240.0,110230.0,0.0074]
[1761926960265,4.2490945,110240.0,110230.0,0.0074]
[1761926960492,0.26740776,110230.0,110220.0,0.0004]
[1761926960711,3.12010307,110230.0,110220.0,0.0004]
[1761926960912,3.14143411,110230.0,110220.0,0.0004]
[1761926961132,3.51561639,110230.0,110220.0,0.0004]
[1761926961364,3.51761639,110230.0,110220.0,1e-08]
[1761926961575,3.56109829,110230.0,110220.0,1e-08]
[1761926962011,3.60966089,110230.0,110220.0,1e-08]
[1761926962208,3.60966089,110230.0,110180.0,0.0004]
[1761926962209,0.18150467,110190.0,110180.0,0.0004]
[1761926962441,3.03414414,110190.0,110180.0,0.0004]
[1761926962641,0.18150467,110190.0,110180.0,0.0004]
[1761926962857,1.26755869,110190.0,110180.0,0.0004]
[1761926963287,1.26804008,110190.0,110180.0,0.0004]
[1761926963702,1.26804008,110190.0,110180.0,0.01589]
[1761926964961,0.00048139,110190.0,110180.0,0.2833801]
[1761926965378,0.00048139,110190.0,110180.0,0.19741114]
[1761926965786,0.00248139,110190.0,110180.0,0.23203114]
[1761926966005,0.00248139,110190.0,110180.0,0.3180001]
[1761926967150,0.00348139,110190.0,110180.0,0.3180001]
[1761926968043,0.00148139,110190.0,110180.0,0.3080001]
[1761926968518,0.00448139,110190.0,110180.0,0.32432469]
[1761926968946,0.18146728,110220.0,110200.0,0.1814882]
[1761926969161,0.92752765,110210.0,110200.0,0.18163253]
[1761926969368,0.92752765,110210.0,110200.0,0.00014433]
[1761926969816,0.92752765,110210.0,110200.0,0.00102723]
[1761926970035,0.19054721,110210.0,110200.0,0.00102723]
[1761926970457,0.93660123,110210.0,110200.0,0.00202723]
[1761926970898,1.02642024,110210.0,110200.0,0.00202723]
[1761926971363,1.04321803,110210.0,110200.0,0.00202723]
[1761926971572,1.04321803,110210.0,110200.0,0.01202723]
[1761926971573,3.38321803,110210.0,110200.0,0.01202723]
[1761926971995,3.38321803,110210.0,110200.0,0.00202723]
[1761926972418,3.38521803,110210.0,110200.0,0.01302723]
[1761926972854,0.547345,110210.0,110200.0,0.01751723]
[1761926973079,1.29539902,110210.0,110200.0,0.00902723]
[1761926973757,1.27860123,110210.0,110200.0,0.20600543]
[1761926974188,1.27860123,110210.0,110200.0,0.23062543]
[1761926974405,1.29540816,110210.0,110200.0,0.20600543]
[1761926974629,1.29540816,110210.0,110200.0,0.04913723]
[1761926974847,1.27860123,110210.0,110200.0,0.19051543]
[1761926975059,0.93860123,110210.0,110200.0,0.20600543]
[1761926975313,0.95541209,110210.0,110200.0,0.20600543]
[1761926975742,0.95541209,110210.0,110200.0,0.02451723]
[1761926975926,0.76486488,110210.0,110200.0,0.20600543]
[1761926976127,0.01881086,110210.0,110200.0,0.23062543]
[1761926976510,0.18347173,110210.0,110200.0,0.23062543]
[1761926976694,0.18347173,110210.0,110200.0,0.20600543]
[1761926976897,0.92952575,110210.0,110200.0,0.02451723]
[1761926977099,0.92952575,110210.0,110200.0,0.00902723]
[1761926977341,0.94635312,110210.0,110200.0,0.00902723]
[1761926977687,0.94635312,110210.0,110200.0,0.02451723]
[1761926977688,0.01882737,110210.0,110200.0,0.02451723]
[1761926977906,0.002,110210.0,110200.0,0.31659439]
[1761926978317,0.002,110210.0,110200.0,0.23062543]
[1761926978529,0.18347173,110210.0,110200.0,0.23062543]
[1761926978736,0.002,110210.0,110200.0,0.23062543]
[1761926978946,0.002,110210.0,110200.0,0.20600543]
[1761926979341,0.002,110210.0,110200.0,0.23062543]
[1761926979546,0.74805402,110210.0,110200.0,0.20600543]
[1761926979955,0.002,110210.0,110200.0,0.23062543]
[1761926982637,0.18347173,110210.0,110200.0,0.23062543]
[1761926982832,0.18347173,110210.0,110200.0,0.02451723]
[1761926983066,0.92952575,110210.0,110200.0,0.20600543]
[1761926983268,0.92952575,110210.0,110200.0,0.02451723]
[1761926983473,0.92952575,110210.0,110200.0,0.20600543]
[1761926983710,0.92952575,110210.0,110200.0,0.02451723]
[1761926983911,0.92952575,110210.0,110200.0,0.19051543]
[1761926984902,0.74805402,110210.0,110200.0,0.19051543]
[1761926985104,0.92952575,110210.0,110200.0,0.19051543]
[1761926985306,0.92952575,110210.0,110200.0,0.20675543]
[1761926985508,0.74805402,110210.0,110200.0,0.20675543]
[1761926985764,0.74805402,110210.0,110200.0,0.22937543]
[1761926985971,0.002,110210.0,110200.0,0.22937543]
[1761926987665,0.18347173,110210.0,110200.0,0.22937543]
[1761926987868,0.002,110210.0,110200.0,0.22937543]
[1761926988095,0.18347173,110210.0,110200.0,0.20675543]
[1761926988960,0.92952575,110210.0,110200.0,0.00902723]
[1761926990009,0.94637694,110210.0,110200.0,0.00902723]
[1761926991942,2.94637694,110210.0,110200.0,0.00902723]
[1761926992475,3.30779595,110210.0,110200.0,0.00902723]
[1761926992846,3.30579595,110210.0,110200.0,0.00902723]
[1761926993057,3.39561496,110210.0,110200.0,0.00902723]
[1761926993511,3.61541764,110210.0,110200.0,0.00902723]
[1761926993722,2.64956094,110210.0,110200.0,0.00802723]
[1761926993882,3.13248929,110210.0,110200.0,0.00802723]
[1761926994096,3.13048929,110210.0,110200.0,0.00102723]
[1761926994377,3.13048929,110210.0,110200.0,0.00109527]
[1761926995031,2.64856094,110210.0,110200.0,0.00109527]
[1761926995255,3.19743112,110210.0,110200.0,0.00109527]
[1761926995697,3.68035947,110210.0,110200.0,0.00109527]
[1761926995944,2.52150467,110190.0,110180.0,0.0004]
[1761926996167,3.13066659,110190.0,110180.0,0.0004]
[1761926996612,3.15794803,110190.0,110180.0,0.0004]
[1761926997287,3.15994803,110190.0,110180.0,0.0064]
[1761926997792,3.19813031,110190.0,110180.0,0.0064]
[1761926998220,3.19813031,110190.0,110180.0,0.0074]
[1761926998399,3.19613031,110190.0,110180.0,0.0074]
[1761926999115,3.15794803,110190.0,110180.0,0.0014]
[1761926999327,2.67501968,110190.0,110180.0,0.0014]
[1761926999542,3.15994803,110190.0,110180.0,0.0074]
[1761927000854,3.07012902,110190.0,110180.0,0.0074]
[1761927001497,3.05068122,110190.0,110180.0,0.0074]
[1761927001700,3.05068122,110190.0,110180.0,0.00784161]
[1761927002572,3.03385882,110190.0,110180.0,0.00784161]
[1761927004615,3.03385882,110190.0,110180.0,0.18936275]
[1761927004616,0.18364903,110190.0,110180.0,0.18936275]
[1761927004864,0.48507271,110190.0,110180.0,0.18936275]
[1761927005090,0.00214436,110190.0,110180.0,0.18936275]
[1761927005768,0.00014436,110190.0,110180.0,0.18336275]
[1761927006280,0.00214436,110190.0,110180.0,0.19336275]
[1761927006742,0.00214436,110190.0,110180.0,0.19236275]
[1761927007191,0.00214436,110190.0,110180.0,0.19436275]
[1761927013407,0.00214436,110190.0,110180.0,0.14436275]
[1761927013624,0.48507271,110190.0,110180.0,0.14436275]
[1761927014473,0.00214436,110190.0,110180.0,0.14436275]
[1761927014684,0.00214436,110190.0,110180.0,0.50251486]
[1761927014904,0.00214436,110190.0,110180.0,0.52054503]
[1761927015584,0.00014436,110190.0,110180.0,0.51054503]
[1761927016002,0.00014436,110190.0,110180.0,0.52354503]
[1761927016003,0.00214436,110190.0,110180.0,0.52354503]
[1761927016429,0.00214436,110190.0,110180.0,0.52154503]
[1761927016664,0.00214436,110190.0,110180.0,1.00747338]
[1761927017129,0.00214436,110190.0,110180.0,1.01747337]
[1761927017353,0.00214436,110190.0,110180.0,1.02747336]
[1761927018042,0.00214436,110190.0,110180.0,1.01747337]
[1761927018263,0.00214436,110190.0,110180.0,1.02747336]
[1761927018492,1e-08,110190.0,110180.0,1.02747336]
[1761927019164,1e-08,110190.0,110180.0,1.51040171]
[1761927019363,1e-08,110190.0,110180.0,1.05473405]
[1761927019814,0.0005,110210.0,110200.0,0.1814882]
[1761927020044,0.0005,110210.0,110200.0,0.76853433]
[1761927020254,0.0005,110210.0,110200.0,0.75038551]
[1761927021154,0.0005,110210.0,110200.0,1.27249614]
[1761927021413,0.18138944,110260.0,110240.0,0.18142235]
[1761927021652,0.00014495,110260.0,110250.0,0.26737485]
[1761927023029,0.00614495,110260.0,110250.0,0.26837485]
[1761927023739,0.00714495,110260.0,110250.0,0.26837485]
[1761927023972,0.00614495,110260.0,110250.0,0.26837485]
[1761927024435,0.00714495,110260.0,110250.0,0.26837485]
[1761927025813,0.00714495,110260.0,110250.0,0.30455713]
[1761927026668,0.00014495,110260.0,110250.0,1.12648548]
[1761927027096,0.00014495,110260.0,110250.0,0.64355713]
[1761927027224,0.00814495,110260.0,110250.0,0.64455713]
[1761927027849,0.00814495,110260.0,110250.0,0.64555713]
[1761927028485,0.00014495,110260.0,110250.0,0.64455713]
[1761927028690,0.00014495,110260.0,110250.0,1.12748548]
[1761927028896,0.00014495,110260.0,110250.0,0.64555713]
[1761927030171,0.00014495,110260.0,110250.0,0.67460003]
[1761927030614,0.00014495,110260.0,110250.0,1.15752838]
[1761927030839,0.00229172,110260.0,110250.0,0.49319414]
[1761927031057,0.00229172,110260.0,110250.0,0.63841775]
[1761927031278,0.00229172,110260.0,110250.0,1.15752838]
[1761927032384,0.00229172,110260.0,110250.0,0.67460003]
[1761927032875,0.00229172,110260.0,110250.0,1.15752838]
[1761927035261,0.00229172,110260.0,110250.0,0.67460003]
[1761927035490,0.00229172,110260.0,110250.0,0.33460003]
[1761927036131,0.00229172,110260.0,110250.0,0.29841775]
[1761927036557,0.18368116,110260.0,110250.0,0.29841775]
[1761927036808,0.00229172,110260.0,110250.0,0.29841775]
[1761927037249,0.00229172,110260.0,110250.0,0.67460003]
[1761927037459,0.00229172,110260.0,110250.0,1.15752838]
[1761927037899,0.00229172,110260.0,110250.0,1.17752836]
[1761927038983,0.00229172,110260.0,110250.0,1.17652836]
[1761927039192,1e-08,110260.0,110250.0,1.17652836]
[1761927039405,1e-08,110260.0,110250.0,1.18452836]
[1761927039624,1e-08,110260.0,110250.0,0.70160001]
[1761927039843,0.01422235,110300.0,110290.0,0.21752238]
[1761927040049,0.01422235,110300.0,110290.0,0.30349134]
[1761927040050,0.01436719,110300.0,110290.0,0.30349134]
[1761927040275,0.19063127,110320.0,110300.0,0.18132366]
[1761927040482,0.19950801,110320.0,110300.0,0.18132366]